fUSD/lending_fUSD_20240708
["ID","MTS","AMOUNT","RATE_DAILY","PERIOD"]
[331481548,1720438043966,-500.0,0.00050136,120]
[331481549,1720438044005,-500.0,0.00050136,120]
[331481550,1720438044044,-500.0,0.00050136,120]
[331481551,1720438044085,-500.0,0.00050136,120]
[331481552,1720438044124,-352.45,0.00050136,120]
[331481553,1720438044163,-500.0,0.00050136,120]
[331481554,1720438044200,-500.0,0.00050136,120]
[331481555,1720438044244,-500.0,0.00050136,120]
[331481556,1720438044284,-500.0,0.00050136,120]
[331481557,1720438044322,-500.0,0.00050136,120]
[331481558,1720438044362,-500.0,0.00050136,120]
[331481559,1720438044400,-521.8,0.00050136,120]
[331481560,1720438044438,-915.13,0.00050136,120]
[331481561,1720438044478,-500.0,0.00050136,120]
[331481562,1720438044515,-4238.82,0.00050136,120]
[331481563,1720438044553,-532.42,0.00050136,120]
[331481564,1720438044592,-500.0,0.00050136,120]
[331481565,1720438044632,-500.0,0.00050136,120]
[331481566,1720438044671,-3090.27,0.00050136,120]
[331481567,1720438044708,-500.0,0.00050136,120]
[331481568,1720438044745,-511.24,0.00050136,120]
[331481569,1720438044783,-5448.63,0.00050136,120]
[331481570,1720438044821,-500.0,0.00050136,120]
[331481571,1720438044861,-2062.26,0.00050136,120]
[331481572,1720438044899,-500.0,0.00050136,120]
[331481573,1720438044935,-2547.29,0.00050136,120]
[331481574,1720438044971,-4594.83,0.00050136,120]
[331481575,1720438045009,-500.0,0.00050136,120]
[331481576,1720438045046,-500.0,0.00050136,120]
[331481577,1720438045082,-1773.39,0.00050136,120]
[331481578,1720438045121,-847.59,0.00050136,120]
[331481579,1720438045158,-722.73,0.00050136,120]
[331481580,1720438045194,-8365.78,0.00050136,120]
[331481581,1720438045231,-500.0,0.00050136,120]
[331481582,1720438045270,-500.0,0.00050136,120]
[331481583,1720438045307,-962.79,0.00050136,120]
[331481584,1720438045343,-1826.77,0.00050136,120]
[331481585,1720438045382,-500.0,0.00050136,120]
[331481586,1720438045420,-500.0,0.00050136,120]
[331481587,1720438045456,-500.0,0.00050136,120]
[331481588,1720438045494,-1768.04,0.00050136,120]
[331481589,1720438045532,-500.0,0.00050136,120]
[331481590,1720438045572,-1447.56,0.00050136,120]
[331481591,1720438045612,-4590.57,0.00050136,120]
[331481592,1720438045652,-1801.6,0.00050136,120]
[331481593,1720438045692,-500.0,0.00050136,120]
[331481594,1720438045732,-500.0,0.00050136,120]
[331481595,1720438045772,-500.0,0.00050136,120]
[331481596,1720438046001,-2861.76,0.00050136,120]
[331481597,1720438046041,-1122.87,0.00050136,120]
[331481598,1720438046080,-500.0,0.00050136,120]
[331481599,1720438046119,-6551.73,0.00050136,120]
[331481600,1720438046156,-500.0,0.00050136,120]
[331481601,1720438046194,-526.91,0.00050136,120]
[331481602,1720438046235,-450.16254678,0.00050136,120]
[331481603,1720438046273,-659.22,0.00050136,120]
[331481604,1720438046312,-626.61196408,0.00050136,30]
[331481605,1720438046349,-500.0,0.00050136,120]
[331481606,1720438046385,-314.77,0.00050136,120]
[331481607,1720438046422,-500.0,0.00050136,120]
[331481608,1720438046461,-500.0,0.00050136,120]
[331481609,1720438046499,-500.0,0.00050136,120]
[331481610,1720438046536,-686.39,0.00050136,120]
[331481611,1720438046575,-1136.27,0.00050136,120]
[331481612,1720438046615,-3164.35,0.00050136,120]
[331481613,1720438046652,-505.54,0.00050136,120]
[331481614,1720438046691,-1162.49,0.00050136,120]
[331481615,1720438046730,-1906.95,0.00050136,120]
[331481616,1720438046769,-500.0,0.00050136,120]
[331481617,1720438046807,-1298.4,0.00050136,120]
[331481618,1720438046846,-1181.68,0.00050136,120]
[331481619,1720438046884,-500.0,0.00050136,120]
[331481620,1720438046921,-2349.1,0.00050136,120]
[331481621,1720438046960,-811.45,0.00050136,120]
[331481622,1720438046996,-500.0,0.00050136,120]
[331481623,1720438047034,-500.0,0.00050136,120]
[331481624,1720438047069,-500.0,0.00050136,120]
[331481625,1720438047106,-500.0,0.00050136,120]
[331481626,1720438047143,-2038.75,0.00050136,120]
[331481627,1720438047180,-759.35,0.00050136,120]
[331481628,1720438047220,-1664.25,0.00050136,120]
[331481629,1720438047257,-500.0,0.00050136,120]
[331481630,1720438047295,-500.0,0.00050136,120]
[331481631,1720438047333,-309.55072232,0.00050377,60]
[331481632,1720438047374,-154.44596459,0.00050393,60]
[331481633,1720438047413,-500.0,0.0005041,120]
[331481634,1720438047454,-500.0,0.0005041,120]
[331481635,1720438047493,-500.0,0.0005041,120]
[331481636,1720438047530,-500.0,0.0005041,120]
[331481637,1720438047566,-500.0,0.0005041,120]
[331481638,1720438047602,-500.0,0.0005041,120]
[331481639,1720438047639,-633.31,0.0005041,120]
[331481640,1720438047674,-500.0,0.0005041,120]
[331481641,1720438047710,-500.0,0.0005041,120]
[331481642,1720438047745,-500.0,0.0005041,120]
[331481643,1720438047780,-827.79,0.0005041,120]
[331481644,1720438047814,-1270.71,0.0005041,120]
[331481645,1720438047848,-2024.69,0.0005041,120]
[331481646,1720438047884,-500.0,0.0005041,120]
[331481647,1720438047920,-1741.22,0.0005041,120]
[331481648,1720438047959,-1241.64,0.0005041,120]
[331481649,1720438047998,-1264.41,0.0005041,120]
[331481650,1720438048040,-500.0,0.0005041,120]
[331481651,1720438048080,-812.78,0.0005041,120]
[331481652,1720438048119,-500.0,0.0005041,120]
[331481653,1720438048156,-500.0,0.0005041,120]
[331481654,1720438048195,-597.99,0.0005041,120]
[331481655,1720438048232,-500.0,0.0005041,120]
[331481656,1720438048269,-500.0,0.0005041,120]
[331481657,1720438048307,-500.0,0.0005041,120]
[331481658,1720438048349,-500.0,0.0005041,120]
[331481659,1720438048385,-592.5,0.0005041,120]
[331481660,1720438048418,-500.0,0.0005041,120]
[331481661,1720438048454,-500.0,0.0005041,120]
[331481662,1720438048492,-500.0,0.0005041,120]
[331481663,1720438048529,-500.0,0.0005041,120]
[331481664,1720438048565,-500.0,0.0005041,120]
[331481665,1720438048601,-1087.49,0.0005041,120]
[331481666,1720438048639,-502.52321542,0.0005041,120]
[331481667,1720438048677,-602.54,0.0005041,120]
[331481668,1720438048715,-978.12,0.0005041,120]
[331481669,1720438048752,-1694.76,0.0005041,120]
[331481670,1720438048790,-500.0,0.0005041,120]
[331481671,1720438048833,-500.0,0.0005041,120]
[331481672,1720438048878,-1886.47,0.0005041,120]
[331481673,1720438048916,-1514.14,0.0005041,120]
[331481674,1720438048955,-501.57391012,0.0005041,120]
[331481675,1720438048993,-500.0,0.0005041,120]
[331481676,1720438049032,-500.0,0.0005041,120]
[331481677,1720438049071,-500.0,0.0005041,120]
[331481678,1720438049108,-500.0,0.0005041,120]
[331481679,1720438049146,-612.16,0.0005041,120]
[331481680,1720438049187,-500.0,0.0005041,120]
[331481681,1720438049225,-445.82416016,0.0005041,120]
[331481682,1720438049263,-859.41,0.0005041,120]
[331481683,1720438049301,-715.44,0.0005041,120]
[331481684,1720438049338,-500.0,0.0005041,120]
[331481685,1720438049376,-500.0,0.0005041,120]
[331481686,1720438049412,-1041.8,0.0005041,120]
[331481687,1720438049450,-500.0,0.0005041,120]
[331481688,1720438049487,-500.0,0.0005041,120]
[331481689,1720438049524,-511.64874803,0.0005041,120]
[331481690,1720438049560,-1826.92,0.0005041,120]
[331481691,1720438049597,-500.0,0.0005041,120]
[331481692,1720438049635,-611.62,0.0005041,120]
[331481693,1720438049676,-500.0,0.0005041,120]
[331481694,1720438049715,-500.0,0.0005041,120]
[331481695,1720438049749,-500.0,0.0005041,120]
[331481696,1720438049785,-500.0,0.0005041,120]
[331481697,1720438049820,-500.0,0.0005041,120]
[331481698,1720438049857,-500.0,0.0005041,120]
[331481699,1720438050079,-279.48836642,0.0005041,120]
[331481700,1720438050120,-2300.26,0.0005041,120]
[331481701,1720438050158,-500.0,0.0005041,120]
[331481702,1720438050196,-500.0,0.0005041,120]
[331481703,1720438050232,-511.25198535,0.0005041,120]
[331481704,1720438050269,-500.0,0.0005041,120]
[331481705,1720438050304,-500.0,0.0005041,120]
[331481706,1720438050339,-500.0,0.0005041,120]
[331481707,1720438050376,-2614.96,0.0005041,120]
[331481708,1720438050411,-500.0,0.0005041,120]
[331481709,1720438050445,-500.0,0.0005041,120]
[331481710,1720438050479,-2148.51,0.0005041,120]
[331481711,1720438050513,-500.0,0.0005041,120]
[331481712,1720438050549,-511.0466994,0.0005041,120]
[331481713,1720438050584,-500.0,0.0005041,120]
[331481714,1720438050620,-633.82,0.0005041,120]
[331481715,1720438050655,-617.84225941,0.0005041,120]
[331481716,1720438050690,-1837.33,0.0005041,120]
[331481717,1720438050726,-500.0,0.0005041,120]
[331481718,1720438050762,-500.0,0.0005041,120]
[331481719,1720438050798,-500.0,0.0005041,120]
[331481720,1720438050834,-500.0,0.0005041,120]
[331481721,1720438050870,-522.56,0.0005041,120]
[331481722,1720438050906,-500.0,0.0005041,120]
[331481723,1720438050943,-500.0,0.0005041,120]
[331481724,1720438050979,-500.0,0.0005041,120]
[331481725,1720438051014,-1448.04,0.0005041,120]
[331481726,1720438051050,-2564.45,0.0005041,120]
[331481727,1720438051085,-852.59,0.0005041,120]
[331481728,1720438051122,-491.58761038,0.0005041,120]
[331481729,1720438051158,-2132.97,0.0005041,120]
[331481730,1720438051194,-500.0,0.0005041,120]
[331481731,1720438051233,-500.0,0.0005041,120]
[331481732,1720438051271,-500.0,0.0005041,120]
[331481733,1720438051307,-500.0,0.0005041,120]
[331481734,1720438051347,-679.05,0.0005041,120]
[331481735,1720438051384,-500.0,0.0005041,120]
[331481736,1720438051421,-2109.64,0.0005041,120]
[331481737,1720438051458,-600.73,0.0005041,120]
[331481738,1720438051496,-578.68,0.0005041,120]
[331481739,1720438051533,-1115.3,0.0005041,120]
[331481740,1720438051568,-500.0,0.0005041,120]
[331481741,1720438051605,-266.70751029,0.0005041,120]
[331481742,1720438051641,-500.0,0.0005041,120]
[331481743,1720438051677,-1725.52,0.0005041,120]
[331481744,1720438051714,-500.0,0.0005041,120]
[331481745,1720438051750,-500.0,0.0005041,120]
[331481746,1720438051787,-723.07,0.0005041,120]
[331481747,1720438051823,-1003.07,0.0005041,120]
[331481748,1720438051858,-981.91,0.0005041,120]
[331481749,1720438051891,-500.0,0.0005041,120]
[331481750,1720438051927,-500.0,0.0005041,120]
[331481751,1720438051962,-622.24,0.0005041,120]
[331481752,1720438051996,-500.0,0.0005041,120]
[331481753,1720438052029,-500.0,0.0005041,120]
[331481754,1720438052064,-500.0,0.0005041,120]
[331481755,1720438052100,-745.91,0.0005041,120]
[331481756,1720438052132,-500.0,0.0005041,120]
[331481757,1720438052164,-594.32,0.0005041,120]
[331481758,1720438052197,-870.94,0.0005041,120]
[331481759,1720438052231,-623.11,0.0005041,120]
[331481760,1720438052263,-500.0,0.0005041,120]
[331481761,1720438052295,-1347.4,0.0005041,120]
[331481762,1720438052329,-500.0,0.0005041,120]
[331481763,1720438052362,-500.0,0.0005041,120]
[331481764,1720438052393,-652.48,0.0005041,120]
[331481765,1720438052424,-560.3,0.0005041,120]
[331481766,1720438052457,-978.58,0.0005041,120]
[331481767,1720438052489,-500.0,0.0005041,120]
[331481768,1720438052521,-1040.65,0.0005041,120]
[331481769,1720438052554,-2087.12,0.0005041,120]
[331481770,1720438052586,-507.70615366,0.0005041,120]
[331481771,1720438052618,-500.0,0.0005041,120]
[331481772,1720438052654,-500.0,0.0005041,120]
[331481773,1720438052694,-555.79,0.0005041,120]
[331481774,1720438052732,-423.41299645,0.0005041,120]
[331481775,1720438052770,-1043.43,0.0005041,120]
[331481776,1720438052809,-500.0,0.0005041,120]
[331481777,1720438052848,-1696.47,0.0005041,120]
[331481778,1720438052886,-500.0,0.0005041,120]
[331481779,1720438052924,-500.0,0.0005041,120]
[331481780,1720438052959,-500.0,0.0005041,120]
[331481781,1720438052996,-500.0,0.0005041,120]
[331481782,1720438053030,-1292.22,0.0005041,120]
[331481783,1720438053066,-500.0,0.0005041,120]
[331481784,1720438053103,-557.25,0.0005041,120]
[331481785,1720438053139,-500.0,0.0005041,120]
[331481786,1720438053173,-1700.15,0.0005041,120]
[331481787,1720438053208,-500.0,0.0005041,120]
[331481788,1720438053245,-653.46,0.0005041,120]
[331481789,1720438053280,-500.0,0.0005041,120]
[331481790,1720438053314,-1020.7,0.0005041,120]
[331481791,1720438053349,-731.92,0.0005041,120]
[331481792,1720438053384,-515.36,0.0005041,120]
[331481793,1720438053418,-500.0,0.0005041,120]
[331481794,1720438053451,-500.0,0.0005041,120]
[331481795,1720438053486,-1070.52,0.0005041,120]
[331481796,1720438053521,-783.21,0.0005041,120]
[331481797,1720438053556,-500.0,0.0005041,120]
[331481798,1720438053590,-500.0,0.0005041,120]
[331481799,1720438053626,-813.62,0.0005041,120]
[331481800,1720438053663,-1354.07,0.0005041,120]
[331481801,1720438053702,-1435.39,0.0005041,120]
[331481802,1720438053937,-183.7537073,0.0005041,120]
[331481803,1720438053975,-564.74,0.0005041,120]
[331481804,1720438054012,-500.0,0.0005041,120]
[331481805,1720438054049,-500.0,0.0005041,120]
[331481806,1720438054085,-500.0,0.0005041,120]
[331481807,1720438054125,-500.0,0.0005041,120]
[331481808,1720438054164,-500.0,0.0005041,120]
[331481809,1720438054204,-763.67,0.0005041,120]
[331481810,1720438054248,-2022.23,0.0005041,120]
[331481811,1720438054288,-500.0,0.0005041,120]
[331481812,1720438054330,-500.0,0.0005041,120]
[331481813,1720438054371,-500.0,0.0005041,120]
[331481814,1720438054413,-500.0,0.0005041,120]
[331481815,1720438054455,-524.75,0.0005041,120]
[331481816,1720438054498,-500.0,0.0005041,120]
[331481817,1720438054540,-2292.61,0.0005041,120]
[331481818,1720438054582,-1256.24,0.0005041,120]
[331481819,1720438054628,-1240.02,0.0005041,120]
[331481820,1720438054672,-500.0,0.0005041,120]
[331481821,1720438054715,-2191.34,0.0005041,120]
[331481822,1720438054756,-500.0,0.0005041,120]
[331481823,1720438054798,-500.0,0.0005041,120]
[331481824,1720438054839,-526.64,0.0005041,120]
[331481825,1720438054881,-518.09,0.0005041,120]
[331481826,1720438054920,-500.0,0.0005041,120]
[331481827,1720438054962,-500.0,0.0005041,120]
[331481828,1720438055003,-500.0,0.0005041,120]
[331481829,1720438055042,-500.0,0.0005041,120]
[331481830,1720438055080,-500.0,0.0005041,120]
[331481831,1720438055118,-500.0,0.0005041,120]
[331481832,1720438055159,-500.0,0.0005041,120]
[331481833,1720438055200,-500.0,0.0005041,120]
[331481834,1720438055243,-500.0,0.0005041,120]
[331481835,1720438055284,-500.0,0.0005041,120]
[331481836,1720438055325,-1483.16,0.0005041,120]
[331481837,1720438055365,-500.0,0.0005041,120]
[331481838,1720438055404,-729.55,0.0005041,120]
[331481839,1720438055441,-500.0,0.0005041,120]
[331481840,1720438055480,-581.75,0.0005041,120]
[331481841,1720438055518,-500.0,0.0005041,120]
[331481842,1720438055555,-342.97386866,0.0005041,120]
[331481843,1720438055592,-500.0,0.0005041,120]
[331481844,1720438055633,-500.0,0.0005041,120]
[331481845,1720438055673,-1051.68,0.0005041,120]
[331481846,1720438055710,-500.0,0.0005041,120]
[331481847,1720438055748,-500.0,0.0005041,120]
[331481848,1720438055784,-500.0,0.0005041,120]
[331481849,1720438055820,-500.0,0.0005041,120]
[331481850,1720438055856,-500.0,0.0005041,120]
[331481851,1720438055891,-553.77,0.0005041,120]
[331481852,1720438055926,-500.0,0.0005041,120]
[331481853,1720438055964,-790.33,0.0005041,120]
[331481854,1720438056003,-625.62,0.0005041,120]
[331481855,1720438056039,-755.84,0.0005041,120]
[331481856,1720438056075,-500.0,0.0005041,120]
[331481857,1720438056110,-1285.43,0.0005041,120]
[331481858,1720438056147,-500.0,0.0005041,120]
[331481859,1720438056183,-500.0,0.0005041,120]
[331481860,1720438056222,-838.12,0.0005041,120]
[331481861,1720438056259,-500.0,0.0005041,120]
[331481862,1720438056293,-500.0,0.0005041,120]
[331481863,1720438056332,-1091.2,0.0005041,120]
[331481864,1720438056367,-500.0,0.0005041,120]
[331481865,1720438056404,-500.0,0.0005041,120]
[331481866,1720438056442,-757.21,0.0005041,120]
[331481867,1720438056480,-500.0,0.0005041,120]
[331481868,1720438056519,-500.0,0.0005041,120]
[331481869,1720438056559,-1418.14,0.0005041,120]
[331481870,1720438056597,-664.42,0.0005041,120]
[331481871,1720438056636,-529.96,0.0005041,120]
[331481872,1720438056674,-624.06,0.0005041,120]
[331481873,1720438056712,-500.0,0.0005041,120]
[331481874,1720438056751,-223.62186251,0.0005041,120]
[331481875,1720438056790,-500.0,0.0005041,120]
[331481876,1720438056827,-1837.3,0.0005041,120]
[331481877,1720438056864,-1202.89,0.0005041,120]
[331481878,1720438056901,-500.0,0.0005041,120]
[331481879,1720438056940,-973.5,0.0005041,120]
[331481880,1720438056977,-500.0,0.0005041,120]
[331481881,1720438057013,-500.0,0.0005041,120]
[331481882,1720438057049,-500.0,0.0005041,120]
[331481883,1720438057084,-1140.41,0.0005041,120]
[331481884,1720438057118,-500.0,0.0005041,120]
[331481885,1720438057152,-3258.9,0.0005041,120]
[331481886,1720438057186,-909.76,0.0005041,120]
[331481887,1720438057222,-500.0,0.0005041,120]
[331481888,1720438057257,-500.0,0.0005041,120]
[331481889,1720438057291,-531.73,0.0005041,120]
[331481890,1720438057330,-500.0,0.0005041,120]
[331481891,1720438057366,-1448.05,0.0005041,120]
[331481892,1720438057401,-1331.04,0.0005041,120]
[331481893,1720438057436,-500.0,0.0005041,120]
[331481894,1720438057472,-500.0,0.0005041,120]
[331481895,1720438057508,-673.04,0.0005041,120]
[331481896,1720438057542,-907.76,0.0005041,120]
[331481897,1720438057576,-500.0,0.0005041,120]
[331481898,1720438057611,-500.0,0.0005041,120]
[331481899,1720438057646,-500.0,0.0005041,120]
[331481900,1720438057682,-500.0,0.0005041,120]
[331481901,1720438057716,-997.68,0.0005041,120]
[331481902,1720438057751,-500.0,0.0005041,120]
[331481903,1720438057785,-500.0,0.0005041,120]
[331481904,1720438057820,-500.0,0.0005041,120]
[331481905,1720438057855,-500.0,0.0005041,120]
[331481906,1720438058079,-500.0,0.0005041,120]
[331481907,1720438058117,-1517.56,0.0005041,120]
[331481908,1720438058155,-500.0,0.0005041,120]
[331481909,1720438058190,-646.53,0.0005041,120]
[331481910,1720438058227,-500.0,0.0005041,120]
[331481911,1720438058263,-500.0,0.0005041,120]
[331481912,1720438058300,-580.66,0.0005041,120]
[331481913,1720438058332,-500.0,0.0005041,120]
[331481914,1720438058366,-766.18,0.0005041,120]
[331481915,1720438058398,-612.85,0.0005041,120]
[331481916,1720438058433,-2991.81,0.0005041,120]
[331481917,1720438058468,-1069.21,0.0005041,120]
[331481918,1720438058502,-949.68,0.0005041,120]
[331481919,1720438058536,-2078.73,0.0005041,120]
[331481920,1720438058573,-587.75,0.0005041,120]
[331481921,1720438058609,-606.14,0.0005041,120]
[331481922,1720438058646,-267.30500893,0.0005041,120]
[331481923,1720438058682,-1492.0,0.0005041,120]
[331481924,1720438058718,-500.0,0.0005041,120]
[331481925,1720438058755,-540.92626579,0.0005041,120]
[331481926,1720438058791,-2128.57,0.0005041,120]
[331481927,1720438058827,-500.0,0.0005041,120]
[331481928,1720438058866,-500.0,0.0005041,120]
[331481929,1720438058905,-500.0,0.0005041,120]
[331481930,1720438058944,-500.0,0.0005041,120]
[331481931,1720438058984,-500.0,0.0005041,120]
[331481932,1720438059023,-500.0,0.0005041,120]
[331481933,1720438059063,-500.0,0.0005041,120]
[331481934,1720438059104,-522.56,0.0005041,120]
[331481935,1720438059146,-754.88,0.0005041,120]
[331481936,1720438059186,-537.16,0.0005041,120]
[331481937,1720438059227,-500.0,0.0005041,120]
[331481938,1720438059267,-500.0,0.0005041,120]
[331481939,1720438059307,-500.0,0.0005041,120]
[331481940,1720438059347,-500.0,0.0005041,120]
[331481941,1720438059388,-500.0,0.0005041,120]
[331481942,1720438059427,-500.0,0.0005041,120]
[331481943,1720438059468,-500.0,0.0005041,120]
[331481944,1720438059508,-3776.54,0.0005041,120]
[331481945,1720438059550,-500.0,0.0005041,120]
[331481946,1720438059589,-1795.75,0.0005041,120]
[331481947,1720438059628,-500.0,0.0005041,120]
[331481948,1720438059666,-754.18,0.0005041,120]
[331481949,1720438059706,-500.0,0.0005041,120]
[331481950,1720438059746,-500.0,0.0005041,120]
[331481951,1720438059784,-500.0,0.0005041,120]
[331481952,1720438059826,-500.0,0.0005041,120]
[331481953,1720438059866,-500.0,0.0005041,120]
[331481954,1720438059915,-500.0,0.0005041,40]
[331481955,1720438059961,-500.0,0.0005041,120]
[331481956,1720438060002,-500.0,0.0005041,120]
[331481957,1720438060043,-1684.15,0.0005041,120]
[331481958,1720438060084,-500.0,0.0005041,120]
[331481959,1720438060125,-639.54,0.0005041,120]
[331481960,1720438060166,-500.0,0.0005041,120]
[331481961,1720438060206,-500.0,0.0005041,120]
[331481962,1720438060249,-500.0,0.0005041,120]
[331481963,1720438060290,-1793.9,0.0005041,120]
[331481964,1720438060332,-500.0,0.0005041,120]
[331481965,1720438060374,-500.0,0.0005041,120]
[331481966,1720438060417,-1733.81,0.0005041,120]
[331481967,1720438060462,-626.58,0.0005041,120]
[331481968,1720438060506,-500.0,0.0005041,120]
[331481969,1720438060548,-1653.08,0.0005041,120]
[331481970,1720438060590,-738.49,0.0005041,120]
[331481971,1720438060632,-500.0,0.0005041,120]
[331481972,1720438060675,-500.0,0.0005041,120]
[331481973,1720438060716,-500.0,0.0005041,120]
[331481974,1720438060756,-500.0,0.0005041,120]
[331481975,1720438060798,-500.0,0.0005041,120]
[331481976,1720438060840,-500.0,0.0005041,120]
[331481977,1720438060880,-515.53,0.0005041,120]
[331481978,1720438060921,-500.0,0.0005041,120]
[331481979,1720438060960,-500.0,0.0005041,120]
[331481980,1720438061001,-1557.0,0.0005041,120]
[331481981,1720438061039,-802.08,0.0005041,120]
[331481982,1720438061077,-684.17,0.0005041,120]
[331481983,1720438061117,-500.0,0.0005041,120]
[331481984,1720438061155,-500.0,0.0005041,120]
[331481985,1720438061192,-3130.17,0.0005041,120]
[331481986,1720438061229,-500.0,0.0005041,120]
[331481987,1720438061266,-532.95,0.0005041,120]
[331481988,1720438061301,-500.0,0.0005041,120]
[331481989,1720438061338,-502.08,0.0005041,120]
[331481990,1720438061374,-500.0,0.0005041,120]
[331481991,1720438061411,-500.0,0.0005041,120]
[331481992,1720438061446,-507.61193733,0.0005041,120]
[331481993,1720438061482,-456.80943246,0.0005041,120]
[331481994,1720438061520,-500.0,0.0005041,120]
[331481995,1720438061558,-1335.76,0.0005041,120]
[331481996,1720438061596,-626.33,0.0005041,120]
[331481997,1720438061632,-1278.56,0.0005041,120]
[331481998,1720438061668,-795.89,0.0005041,120]
[331481999,1720438061704,-500.0,0.0005041,120]
[331482000,1720438061740,-1183.41,0.0005041,120]
[331482001,1720438061776,-500.0,0.0005041,120]
[331482002,1720438061813,-500.0,0.0005041,120]
[331482003,1720438061849,-500.0,0.0005041,120]
[331482004,1720438061884,-508.69123377,0.0005041,120]
[331482005,1720438061918,-500.0,0.0005041,120]
[331482006,1720438061953,-500.0,0.0005041,120]
[331482007,1720438061987,-500.0,0.0005041,120]
[331482008,1720438062022,-500.0,0.0005041,120]
[331482009,1720438062055,-500.0,0.0005041,120]
[331482010,1720438062304,-500.0,0.0005041,120]
[331482011,1720438062341,-500.0,0.0005041,120]
[331482012,1720438062375,-500.0,0.0005041,120]
[331482013,1720438062408,-500.0,0.0005041,120]
[331482014,1720438062442,-500.0,0.0005041,120]
[331482015,1720438062476,-350.98,0.0005041,120]
[331482016,1720438062508,-500.0,0.0005041,120]
[331482017,1720438062543,-3526.41,0.0005041,120]
[331482018,1720438062578,-1599.68,0.0005041,120]
[331482019,1720438062613,-500.0,0.0005041,120]
[331482020,1720438062649,-697.42,0.0005041,120]
[331482021,1720438062685,-587.27,0.0005041,120]
[331482022,1720438062722,-500.0,0.0005041,120]
[331482023,1720438062759,-500.0,0.0005041,120]
[331482024,1720438062795,-500.0,0.0005041,120]
[331482025,1720438062831,-500.0,0.0005041,120]
[331482026,1720438062864,-2679.44,0.0005041,120]
[331482027,1720438062896,-1492.66,0.0005041,120]
[331482028,1720438062929,-527.7,0.0005041,120]
[331482029,1720438062962,-500.0,0.0005041,120]
[331482030,1720438062995,-3645.63,0.0005041,120]
[331482031,1720438063026,-500.0,0.0005041,120]
[331482032,1720438063060,-500.0,0.0005041,120]
[331482033,1720438063091,-893.27,0.0005041,120]
[331482034,1720438063123,-667.35,0.0005041,120]
[331482035,1720438063157,-591.72,0.0005041,120]
[331482036,1720438063190,-500.0,0.0005041,120]
[331482037,1720438063226,-500.0,0.0005041,120]
[331482038,1720438063261,-510.27,0.0005041,120]
[331482039,1720438063296,-702.49,0.0005041,120]
[331482040,1720438063330,-500.0,0.0005041,120]
[331482041,1720438063365,-687.27,0.0005041,120]
[331482042,1720438063398,-500.0,0.0005041,120]
[331482043,1720438063432,-500.0,0.0005041,120]
[331482044,1720438063468,-500.0,0.0005041,120]
[331482045,1720438063500,-500.0,0.0005041,120]
[331482046,1720438063531,-577.52,0.0005041,120]
[331482047,1720438063565,-500.0,0.0005041,120]